[Event "Mentese Flowers WGM Chess-ch 2022"]
[Site "Mentese-Mugla"]
[Date "2022.02.06"]
[Round "2.2"]
[White "Darban, Morteza"]
[Black "Ince, Safiye Oyku"]
[Result "1-0"]
[ECO "B40"]
[WhiteElo "2263"]
[BlackElo "1893"]
[Annotator "RC"]
[PlyCount "71"]
[EventDate "2022.02.06"]
[EventCountry "TUR"]
[SourceTitle "playchess.com"]
[Source "ChessBase"]
[SourceQuality "1"]
[TimeControl "5400+30"]

1. e4 {[%emt 0:02:00]} c5 {[%emt 0:01:00]} 2. Nf3 {[%emt 0:00:30]} e6 {[%emt 0:00:00]} 3. g3 {[%emt 0:00:00]} Nc6 {[%emt 0:02:00]} 4. Bg2 {[%emt 0:00:00]} d5 {[%emt 0:02:30]} 5. exd5 {[%emt 0:00:30]} exd5 {[%emt 0:00:00]} 6. O-O {[%emt 0:01:30]} Bg4 {[%emt 0:06:00]} 7. h3 {[%emt 0:02:30]} Bxf3 {[%emt 0:00:00]} 8. Qxf3 {[%emt 0:01:30]} Nf6 {[%emt 0:01:00]} 9. Nc3 {[%emt 0:02:30]} d4 {[%emt 0:06:30]} 10. Nb5 {[%emt 0:03:30]} Be7 {[%emt 0:02:30]} 11. d3 {[%emt 0:00:30]} O-O {[%emt 0:01:30]} 12. Na3 {[%emt 0:03:30]} Rc8 {[%emt 0:05:30]} 13. Re1 {[%emt 0:03:30]} Qd7 {[%emt 0:08:30]} 14. Bd2 {[%emt 0:03:30]} Rfe8 {[%emt 0:08:30]} 15. Nc4 {[%emt 0:00:00]} b5 {[%emt 0:04:30]} 16. Ne5 {[%emt 0:02:00]} Nxe5 {[%emt 0:00:30]} 17. Rxe5 {[%emt 0:00:00]} Bf8 {[%emt 0:01:30]} 18. Rxe8 {[%emt 0:04:00]} Nxe8 {[%emt 0:04:30]} 19. a4 {[%emt 0:08:30]} bxa4 {[%emt 0:06:30]} 20. Qb7 {[%emt 0:00:00]} Rc7 {[%emt 0:04:30]} 21. Qa6 {[%emt 0:00:00]} c4 {[%emt 0:06:30]} 22. Qxa4 {[%emt 0:07:30]} Qxa4 {[%emt 0:01:30]} 23. Rxa4 {[%emt 0:00:30]} cxd3 {[%emt 0:00:30]} 24. cxd3 {[%emt 0:00:00]} Rc2 {[%emt 0:00:30]} 25. Bf4 {[%emt 0:00:00]} Bc5 {[%emt 0:01:30]} 26. b4 {[%emt 0:04:30]} Bb6 {[%emt 0:09:27]} 27. Bb8 {[%emt 0:01:30]} Rc3 {[%emt 0:02:18]} 28. Bxa7 {[%emt 0:00:30]} Bxa7 {[%emt 0:00:12]} 29. Rxa7 {[%emt 0:00:30]} Rxd3 {[%emt 0:00:16]} 30. Bc6 {[%emt 0:01:30]} Rd1+ {[%emt 0:00:30]} 31. Kg2 {[%emt 0:00:30]} Kf8 {[%emt 0:00:30]} 32. Ra8 {[%emt 0:00:30]} Re1 {[%emt 0:00:30]} 33. Kf3 {[%emt 0:00:30]} d3 {[%emt 0:00:30]} 34. Rxe8+ {[%emt 0:00:30]} Rxe8 {[%emt 0:00:00]} 35. Bxe8 {[%emt 0:00:00]} Kxe8 {[%emt 0:00:00]} 36. Ke3 {[%emt 0:00:00]} 1-0

[Event "Mentese Flowers WGM Chess-ch 2022"]
[Site "Mentese-Mugla"]
[Date "2022.02.07"]
[Round "4.1"]
[White "Kirilmaz, Emre"]
[Black "Hekimoglu, Mihriban"]
[Result "1-0"]
[ECO "D00"]
[WhiteElo "2229"]
[BlackElo "1479"]
[Annotator "ChessBase"]
[PlyCount "57"]
[EventDate "2022.02.06"]
[EventCountry "TUR"]
[SourceTitle "playchess.com"]
[Source "ChessBase"]
[SourceQuality "1"]
[TimeControl "5400+30"]

1. d4 {[%emt 0:02:00]} d5 {[%emt 0:01:00]} 2. c3 {[%emt 0:00:30]} Nf6 {[%emt 0:00:00]} 3. Bg5 {[%emt 0:00:30]} Nbd7 {[%emt 0:00:00]} 4. Nf3 {[%emt 0:00:30]} e6 {[%emt 0:00:30]} 5. Nbd2 {[%emt 0:00:30]} h6 {[%emt 0:00:30]} 6. Bh4 {[%emt 0:01:30]} c5 {[%emt 0:00:00]} 7. e3 {[%emt 0:00:30]} Bd6 {[%emt 0:00:00]} 8. Bd3 {[%emt 0:00:30]} Qc7 {[%emt 0:01:30]} 9. Qe2 {[%emt 0:00:30]} c4 {[%emt 0:01:30]} 10. Bc2 {[%emt 0:00:00]} b5 {[%emt 0:02:30]} 11. e4 {[%emt 0:04:00]} dxe4 {[%emt 0:00:30]} 12. Nxe4 {[%emt 0:00:30]} Nxe4 {[%emt 0:00:30]} 13. Bxe4 {[%emt 0:01:30]} Rb8 {[%emt 0:00:00]} 14. O-O {[%emt 0:02:30]} g5 {[%emt 0:05:00]} 15. Bg3 {[%emt 0:00:00]} Bxg3 {[%emt 0:03:30]} 16. fxg3 {[%emt 0:01:00]} Bb7 {[%emt 0:05:30]} 17. Rae1 {[%emt 0:00:30]} Bxe4 {[%emt 0:07:30]} 18. Qxe4 {[%emt 0:00:30]} O-O {[%emt 0:05:30]} 19. Qg4 {[%emt 0:03:30]} Nf6 {[%emt 0:04:30]} 20. Qh3 {[%emt 0:00:30]} Kg7 {[%emt 0:00:30]} 21. Ne5 {[%emt 0:00:30]} h5 {[%emt 0:11:30]} 22. Re2 {[%emt 0:01:30]} Rh8 {[%emt 0:00:30]} 23. Ref2 {[%emt 0:00:30]} Rh6 {[%emt 0:00:30]} 24. g4 {[%emt 0:01:30]} Rf8 {[%emt 0:04:30]} 25. Qe3 {[%emt 0:01:30]} Nh7 {[%emt 0:02:30]} 26. h4 {[%emt 0:05:30]} f6 {[%emt 0:09:30]} 27. hxg5 {[%emt 0:00:30]} Nxg5 {[%emt 0:00:30]} 28. Qxg5+ {[%emt 0:00:00]} fxg5 {[%emt 0:00:30]} 29. Rxf8 {[%emt 0:00:00]} 1-0

[Event "Mentese Flowers WGM Chess-ch 2022"]
[Site "Mentese-Mugla"]
[Date "2022.02.10"]
[Round "10.3"]
[White "Huseyinoglu, Alihan"]
[Black "Boshra, Alshaeby"]
[Result "1-0"]
[ECO "E76"]
[WhiteElo "2312"]
[BlackElo "1911"]
[Annotator "ChessBase"]
[PlyCount "132"]
[EventDate "2022.02.06"]
[EventCountry "TUR"]
[SourceTitle "playchess.com"]
[Source "ChessBase"]
[SourceQuality "1"]
[TimeControl "5400+30"]

1. d4 {[%emt 0:01:00]} Nf6 {[%emt 0:04:00]} 2. c4 {[%emt 0:00:00]} g6 {[%emt 0:00:30]} 3. Nc3 {[%emt 0:00:00]} Bg7 {[%emt 0:00:30]} 4. e4 {[%emt 0:00:30]} d6 {[%emt 0:00:00]} 5. f4 {[%emt 0:00:30]} O-O {[%emt 0:00:00]} 6. Nf3 {[%emt 0:00:00]} c5 {[%emt 0:00:30]} 7. dxc5 {[%emt 0:00:00]} Na6 {[%emt 0:00:30]} 8. cxd6 {[%emt 0:38:30]} exd6 {[%emt 0:00:00]} 9. Bd3 {[%emt 0:01:30]} Qb6 {[%emt 0:00:00]} 10. Qb3 {[%emt 0:17:30]} Qxb3 {[%emt 0:31:30]} 11. axb3 {[%emt 0:00:30]} Nc5 {[%emt 0:00:30]} 12. Bc2 {[%emt 0:01:30]} Nfxe4 {[%emt 0:00:30]} 13. Nxe4 {[%emt 0:03:30]} Nxe4 {[%emt 0:00:30]} 14. O-O {[%emt 0:00:30]} Re8 {[%emt 0:08:30]} 15. Re1 {[%emt 0:03:30]} f5 {[%emt 0:01:30]} 16. Be3 {[%emt 0:06:30]} Bxb2 {[%emt 0:05:30]} 17. Rxa7 {[%emt 0:00:30]} Rxa7 {[%emt 0:00:30]} 18. Bxa7 {[%emt 0:00:30]} Bd7 {[%emt 0:00:30]} 19. Bd4 {[%emt 0:03:30]} Bxd4+ {[%emt 0:09:30]} 20. Nxd4 {[%emt 0:00:00]} Nc3 {[%emt 0:00:30]} 21. Kf2 {[%emt 0:03:16]} Rxe1 {[%emt 0:01:30]} 22. Kxe1 {[%emt 0:00:03]} Na2 {[%emt 0:12:30]} 23. Kd2 {[%emt 0:02:59]} Kf7 {[%emt 0:03:13]} 24. Bd1 {[%emt 0:02:32]} Bc6 {[%emt 0:01:02]} 25. g3 {[%emt 0:04:53]} Ke7 {[%emt 0:03:02]} 26. Nc2 {[%emt 0:03:18]} Be4 {[%emt 0:00:10]} 27. Ne3 {[%emt 0:00:45]} Ke6 {[%emt 0:06:33]} 28. Bc2 {[%emt 0:01:21]} Bxc2 {[%emt 0:02:27]} 29. Kxc2 {[%emt 0:03:02]} Nb4+ {[%emt 0:00:35]} 30. Kc3 {[%emt 0:00:01]} Na2+ {[%emt 0:02:21]} 31. Kd4 {[%emt 0:00:23]} Nb4 {[%emt 0:02:28]} 32. Nd5 {[%emt 0:01:52]} Nc2+ {[%emt 0:03:55]} 33. Kc3 {[%emt 0:00:58]} Ne1 {[%emt 0:00:07]} 34. h3 {[%emt 0:01:09]} Nf3 {[%emt 0:00:26]} 35. Kd3 {[%emt 0:00:09]} Ng1 {[%emt 0:01:02]} 36. h4 {[%emt 0:00:15]} Nf3 {[%emt 0:00:29]} 37. Nc7+ {[%emt 0:00:46]} Kd7 {[%emt 0:00:11]} 38. Nb5 {[%emt 0:00:05]} Nh2 {[%emt 0:00:48]} 39. Ke3 {[%emt 0:01:28]} Nf1+ {[%emt 0:00:24]} 40. Kf2 {[%emt 0:00:03]} Nd2 {[%emt 0:00:10]} 41. Nd4 {[%emt 0:00:06]} Ne4+ {[%emt 0:00:33]} 42. Kf3 {[%emt 0:00:06]} Nd2+ {[%emt 0:00:36]} 43. Ke3 {[%emt 0:01:35]} Nf1+ {[%emt 0:00:33]} 44. Kf2 {[%emt 0:00:34]} Nd2 {[%emt 0:00:27]} 45. h5 {[%emt 0:00:36]} gxh5 {[%emt 0:00:26]} 46. Ke3 {[%emt 0:00:37]} Nf1+ {[%emt 0:00:38]} 47. Kf2 {[%emt 0:00:01]} Nd2 {[%emt 0:00:07]} 48. Ke2 {[%emt 0:00:21]} Ne4 {[%emt 0:01:04]} 49. Nxf5 {[%emt 0:00:04]} Ke6 {[%emt 0:00:55]} 50. Ng7+ {[%emt 0:01:30]} Kf6 {[%emt 0:00:35]} 51. Nxh5+ {[%emt 0:00:05]} Kf5 {[%emt 0:00:38]} 52. Ke3 {[%emt 0:00:16]} Nc5 {[%emt 0:00:26]} 53. b4 {[%emt 0:01:07]} Ne6 {[%emt 0:00:24]} 54. b5 {[%emt 0:00:31]} h6 {[%emt 0:00:38]} 55. Kf3 {[%emt 0:00:14]} Nd4+ {[%emt 0:00:06]} 56. Ke3 {[%emt 0:00:02]} Ne6 {[%emt 0:00:12]} 57. b6 {[%emt 0:01:08]} Nc5 {[%emt 0:01:18]} 58. Ng7+ {[%emt 0:00:41]} Kf6 {[%emt 0:00:17]} 59. Ne8+ {[%emt 0:00:11]} Ke7 {[%emt 0:00:20]} 60. Nc7 {[%emt 0:00:12]} Na4 {[%emt 0:00:50]} 61. Nd5+ {[%emt 0:00:14]} Ke6 {[%emt 0:00:29]} 62. g4 {[%emt 0:00:11]} Kf7 {[%emt 0:00:32]} 63. Kd4 {[%emt 0:00:47]} Kg7 {[%emt 0:00:27]} 64. Ne7 {[%emt 0:01:02]} Kf6 {[%emt 0:00:31]} 65. Nd5+ {[%emt 0:00:30]} Kf7 {[%emt 0:00:30]} 66. f5 {[%emt 0:00:24]} Nc5 {[%emt 0:00:00]} 1-0